Workbook

Sheet Alimentar
C2: Superior Tribunal de Justiça
C3: Secretaria de Processamento de Feitos
C4: Coordenadoria de Processamento de Feitos em Execução Judicial
C6: RELAÇÃO DOS PRECATÓRIOS, DE NATUREZA ALIMENTAR, EM QUE É DEVEDORA A UNIÃO, SUAS AUTARQUIAS E FUNDAÇÕES, AUTUADOS NO PERÍODO DE 03/04/2024 A 02/04/2025 INSCRITOS NA PROPOSTA ORÇAMENTÁRIA DE 2026
C8: tipo | D8: Nº | E8: registro único CNJ | F8: NATUREZA | G8: entidade devedora | J8: data base
H9: Preferência
I10: Total
B12: 1 | C12: PRC | D12: 12311 | E12: 0149280-51.2024.3.00.0000 | F12: Alimentar | G12: União | H12: Idoso | I12: 93940.72 | J12: 2025-04-01
B13: 2 | C13: PRC | D13: 12312 | E13: 0149304-79.2024.3.00.0000 | F13: Alimentar | G13: União | H13: Idoso | I13: 93373.75 | J13: 2025-04-01
B14: 3 | C14: PRC | D14: 12313 | E14: 0149451-08.2024.3.00.0000 | F14: Alimentar | G14: União | H14: Idoso | I14: 93106.52 | J14: 2025-04-01
B15: 4 | C15: PRC | D15: 12314 | E15: 0150251-36.2024.3.00.0000 | F15: Alimentar | G15: União | H15: Idoso | I15: 931050.5 | J15: 2025-04-01
B16: 5 | C16: PRC | D16: 12315 | E16: 0150252-21.2024.3.00.0000 | F16: Alimentar | G16: União | H16: Idoso | I16: 900149.59 | J16: 2025-04-01
B17: 6 | C17: PRC | D17: 12316 | E17: 0150253-06.2024.3.00.0000 | F17: Alimentar | G17: União | H17: - | I17: 149617.68 | J17: 2025-04-01
B18: 7 | C18: PRC | D18: 12317 | E18: 0150258-28.2024.3.00.0000 | F18: Alimentar | G18: União | H18: Idoso | I18: 106536.97 | J18: 2025-04-01
B19: 8 | C19: PRC | D19: 12319 | E19: 0154207-60.2024.3.00.0000 | F19: Alimentar | G19: Instituto Nacional do Seguro Social - INSS | H19: - | I19: 33748.05 | J19: 2025-04-01
B20: 9 | C20: PRC | D20: 12320 | E20: 0154333-13.2024.3.00.0000 | F20: Alimentar | G20: Instituto Nacional do Seguro Social - INSS | H20: - | I20: 26346.57 | J20: 2025-04-01
B21: 10 | C21: PRC | D21: 12321 | E21: 0155021-72.2024.3.00.0000 | F21: Alimentar | G21: Instituto Nacional do Seguro Social - INSS | H21: - | I21: 24203.16 | J21: 2025-04-01
B22: 11 | C22: PRC | D22: 12322 | E22: 0155061-54.2024.3.00.0000 | F22: Alimentar | G22: União | H22: Idoso | I22: 94348.31 | J22: 2025-04-01
B23: 12 | C23: PRC | D23: 12323 | E23: 0155116-05.2024.3.00.0000 | F23: Alimentar | G23: União | H23: - | I23: 37751.13 | J23: 2025-04-01
B24: 13 | C24: PRC | D24: 12324 | E24: 0155118-72.2024.3.00.0000 | F24: Alimentar | G24: União | H24: Idoso | I24: 97450.18 | J24: 2025-04-01
B25: 14 | C25: PRC | D25: 12326 | E25: 0155129-04.2024.3.00.0000 | F25: Alimentar | G25: União | H25: Idoso | I25: 900149.58 | J25: 2025-04-01
B26: 15 | C26: PRC | D26: 12327 | E26: 0155130-86.2024.3.00.0000 | F26: Alimentar | G26: União | H26: - | I26: 73546.46 | J26: 2025-04-01
B27: 16 | C27: PRC | D27: 12328 | E27: 0183051-20.2024.3.00.0000 | F27: Alimentar | G27: União | H27: Idoso | I27: 95541.07 | J27: 2025-04-01
B28: 17 | C28: PRC | D28: 12329 | E28: 0183058-12.2024.3.00.0000 | F28: Alimentar | G28: União | H28: Idoso | I28: 93330.14 | J28: 2025-04-01
B29: 18 | C29: PRC | D29: 12330 | E29: 0183181-10.2024.3.00.0000 | F29: Alimentar | G29: Instituto Nacional do Seguro Social - INSS | H29: Idoso | I29: 111612.97 | J29: 2025-04-01
B30: 19 | C30: PRC | D30: 12331 | E30: 0183518-96.2024.3.00.0000 | F30: Alimentar | G30: Instituto Nacional do Seguro Social - INSS | H30: - | I30: 172861.33 | J30: 2025-04-01
B31: 20 | C31: PRC | D31: 12332 | E31: 0183533-65.2024.3.00.0000 | F31: Alimentar | G31: Instituto Nacional do Seguro Social - INSS | H31: - | I31: 21548.04 | J31: 2025-04-01
B32: 21 | C32: PRC | D32: 12333 | E32: 0183621-06.2024.3.00.0000 | F32: Alimentar | G32: Instituto Nacional do Seguro Social - INSS | H32: - | I32: 131157.31 | J32: 2025-04-01
B33: 22 | C33: PRC | D33: 12334 | E33: 0183068-56.2024.3.00.0000 | F33: Alimentar | G33: União | H33: Idoso | I33: 96851.89 | J33: 2025-04-01
B34: 23 | C34: PRC | D34: 12335 | E34: 0185298-71.2024.3.00.0000 | F34: Alimentar | G34: União | H34: Idoso | I34: 1073772.23 | J34: 2025-04-01
B35: 24 | C35: PRC | D35: 12336 | E35: 0185301-26.2024.3.00.0000 | F35: Alimentar | G35: União | H35: Idoso | I35: 993628.7 | J35: 2025-04-01
B36: 25 | C36: PRC | D36: 12337 | E36: 0185305-63.2024.3.00.0000 | F36: Alimentar | G36: União | H36: Idoso | I36: 1556850.87 | J36: 2025-04-01
B37: 26 | C37: PRC | D37: 12338 | E37: 0185329-91.2024.3.00.0000 | F37: Alimentar | G37: União | H37: Idoso | I37: 1319816.52 | J37: 2025-04-01
B38: 27 | C38: PRC | D38: 12339 | E38: 0185584-49.2024.3.00.0000 | F38: Alimentar | G38: Instituto Nacional do Seguro Social - INSS | H38: - | I38: 110466.8 | J38: 2025-04-01
B39: 28 | C39: PRC | D39: 12340 | E39: 0185606-10.2024.3.00.0000 | F39: Alimentar | G39: Instituto Nacional do Seguro Social - INSS | H39: - | I39: 2031.2 | J39: 2025-04-01
B40: 29 | C40: PRC | D40: 12341 | E40: 0187231-79.2024.3.00.0000 | F40: Alimentar | G40: União | H40: - | I40: 2362.8 | J40: 2025-04-01
B41: 30 | C41: PRC | D41: 12343 | E41: 0187239-56.2024.3.00.0000 | F41: Alimentar | G41: União | H41: - | I41: 128822.92 | J41: 2025-04-01
B42: 31 | C42: PRC | D42: 12344 | E42: 0187246-48.2024.3.00.0000 | F42: Alimentar | G42: União | H42: - | I42: 128822.92 | J42: 2025-04-01
B43: 32 | C43: PRC | D43: 12345 | E43: 0190701-21.2024.3.00.0000 | F43: Alimentar | G43: Instituto Nacional do Seguro Social - INSS | H43: - | I43: 29791.292 | J43: 2025-04-01
B44: 33 | C44: PRC | D44: 12346 | E44: 0190706-43.2024.3.00.0000 | F44: Alimentar | G44: Instituto Nacional do Seguro Social - INSS | H44: - | I44: 349.518 | J44: 2025-04-01
B45: 34 | C45: PRC | D45: 12347 | E45: 0190837-18.2024.3.00.0000 | F45: Alimentar | G45: União | H45: - | I45: 2234.67 | J45: 2025-04-01
B46: 35 | C46: PRC | D46: 12348 | E46: 0190848-47.2024.3.00.0000 | F46: Alimentar | G46: Instituto Nacional do Seguro Social - INSS | H46: Idoso | I46: 1251561.95 | J46: 2025-04-01
B47: 36 | C47: PRC | D47: 12349 | E47: 0190869-23.2024.3.00.0000 | F47: Alimentar | G47: Instituto Nacional do Seguro Social - INSS | H47: Idoso | I47: 102145.24 | J47: 2025-04-01
B48: 37 | C48: PRC | D48: 12351 | E48: 0192989-39.2024.3.00.0000 | F48: Alimentar | G48: Instituto Nacional do Seguro Social - INSS | H48: - | I48: 49037.89 | J48: 2025-04-01
B49: 38 | C49: PRC | D49: 12352 | E49: 0192995-46.2024.3.00.0000 | F49: Alimentar | G49: Instituto Nacional do Seguro Social - INSS | H49: Idoso | I49: 39359.67 | J49: 2025-04-01
B50: 39 | C50: PRC | D50: 12353 | E50: 0193008-45.2024.3.00.0000 | F50: Alimentar | G50: Instituto Nacional do Seguro Social - INSS | H50: Idoso | I50: 85654.55 | J50: 2025-04-01
B51: 40 | C51: PRC | D51: 12354 | E51: 0193032-73.2024.3.00.0000 | F51: Alimentar | G51: Instituto Nacional do Seguro Social - INSS | H51: Idoso | I51: 62597.76 | J51: 2025-04-01
B52: 41 | C52: PRC | D52: 12355 | E52: 0193037-95.2024.3.00.0000 | F52: Alimentar | G52: Instituto Nacional do Seguro Social - INSS | H52: Idoso | I52: 32962.11 | J52: 2025-04-01
B53: 42 | C53: PRC | D53: 12356 | E53: 0193042-20.2024.3.00.0000 | F53: Alimentar | G53: Instituto Nacional do Seguro Social - INSS | H53: Idoso | I53: 42871.99 | J53: 2025-04-01
B54: 43 | C54: PRC | D54: 12357 | E54: 0193049-12.2024.3.00.0000 | F54: Alimentar | G54: Instituto Nacional do Seguro Social - INSS | H54: Idoso | I54: 69638.83 | J54: 2025-04-01
B55: 44 | C55: PRC | D55: 12358 | E55: 0193071-70.2024.3.00.0000 | F55: Alimentar | G55: Instituto Nacional do Seguro Social - INSS | H55: Idoso | I55: 70544.64 | J55: 2025-04-01
B56: 45 | C56: PRC | D56: 12359 | E56: 0193081-17.2024.3.00.0000 | F56: Alimentar | G56: Instituto Nacional do Seguro Social - INSS | H56: Idoso | I56: 35302.17 | J56: 2025-04-01
B57: 46 | C57: PRC | D57: 12360 | E57: 0193082-02.2024.3.00.0000 | F57: Alimentar | G57: Instituto Nacional do Seguro Social - INSS | H57: Idoso | I57: 32837.67 | J57: 2025-04-01
B58: 47 | C58: PRC | D58: 12361 | E58: 0193084-69.2024.3.00.0000 | F58: Alimentar | G58: Instituto Nacional do Seguro Social - INSS | H58: Idoso | I58: 68497.74 | J58: 2025-04-01
B59: 48 | C59: PRC | D59: 12362 | E59: 0193087-24.2024.3.00.0000 | F59: Alimentar | G59: Instituto Nacional do Seguro Social - INSS | H59: Idoso | I59: 44959.74 | J59: 2025-04-01
B60: 49 | C60: PRC | D60: 12363 | E60: 0193112-37.2024.3.00.0000 | F60: Alimentar | G60: Instituto Nacional do Seguro Social - INSS | H60: Idoso | I60: 66341.61 | J60: 2025-04-01
B61: 50 | C61: PRC | D61: 12364 | E61: 0193117-59.2024.3.00.0000 | F61: Alimentar | G61: Instituto Nacional do Seguro Social - INSS | H61: Idoso | I61: 128477.66 | J61: 2025-04-01
B62: 51 | C62: PRC | D62: 12365 | E62: 0193120-14.2024.3.00.0000 | F62: Alimentar | G62: Instituto Nacional do Seguro Social - INSS | H62: Idoso | I62: 36271.55 | J62: 2025-04-01
B63: 52 | C63: PRC | D63: 12366 | E63: 0193132-28.2024.3.00.0000 | F63: Alimentar | G63: Instituto Nacional do Seguro Social - INSS | H63: Idoso | I63: 72964.45 | J63: 2025-04-01
B64: 53 | C64: PRC | D64: 12367 | E64: 0193137-50.2024.3.00.0000 | F64: Alimentar | G64: Instituto Nacional do Seguro Social - INSS | H64: Idoso | I64: 67199.77 | J64: 2025-04-01
B65: 54 | C65: PRC | D65: 12368 | E65: 0193138-35.2024.3.00.0000 | F65: Alimentar | G65: Instituto Nacional do Seguro Social - INSS | H65: - | I65: 33585.69 | J65: 2025-04-01
B66: 55 | C66: PRC | D66: 12369 | E66: 0193171-25.2024.3.00.0000 | F66: Alimentar | G66: Instituto Nacional do Seguro Social - INSS | H66: Idoso | I66: 227819.34 | J66: 2025-04-01
B67: 56 | C67: PRC | D67: 12370 | E67: 0193181-69.2024.3.00.0000 | F67: Alimentar | G67: Instituto Nacional do Seguro Social - INSS | H67: Idoso | I67: 224146.74 | J67: 2025-04-01
B68: 57 | C68: PRC | D68: 12371 | E68: 0193185-09.2024.3.00.0000 | F68: Alimentar | G68: Instituto Nacional do Seguro Social - INSS | H68: Idoso | I68: 142158.02 | J68: 2025-04-01
B69: 58 | C69: PRC | D69: 12372 | E69: 0193210-22.2024.3.00.0000 | F69: Alimentar | G69: Instituto Nacional do Seguro Social - INSS | H69: Idoso | I69: 230163.67 | J69: 2025-04-01
B70: 59 | C70: PRC | D70: 12373 | E70: 0193211-07.2024.3.00.0000 | F70: Alimentar | G70: Instituto Nacional do Seguro Social - INSS | H70: Idoso | I70: 216662.78 | J70: 2025-04-01
B71: 60 | C71: PRC | D71: 12374 | E71: 0193233-65.2024.3.00.0000 | F71: Alimentar | G71: Instituto Nacional do Seguro Social - INSS | H71: Idoso | I71: 163105.62 | J71: 2025-04-01
B72: 61 | C72: PRC | D72: 12375 | E72: 0193236-20.2024.3.00.0000 | F72: Alimentar | G72: Instituto Nacional do Seguro Social - INSS | H72: Idoso | I72: 220832.74 | J72: 2025-04-01
B73: 62 | C73: PRC | D73: 12376 | E73: 0193243-12.2024.3.00.0000 | F73: Alimentar | G73: Instituto Nacional do Seguro Social - INSS | H73: Idoso | I73: 212009.38 | J73: 2025-04-01
B74: 63 | C74: PRC | D74: 12377 | E74: 0193247-49.2024.3.00.0000 | F74: Alimentar | G74: Instituto Nacional do Seguro Social - INSS | H74: Idoso | I74: 219801.4 | J74: 2025-04-01
B75: 64 | C75: PRC | D75: 12378 | E75: 0193283-91.2024.3.00.0000 | F75: Alimentar | G75: Instituto Nacional do Seguro Social - INSS | H75: Idoso | I75: 149652.8 | J75: 2025-04-01
B76: 65 | C76: PRC | D76: 12379 | E76: 0193289-98.2024.3.00.0000 | F76: Alimentar | G76: Instituto Nacional do Seguro Social - INSS | H76: Idoso | I76: 186866.01 | J76: 2025-04-01
B77: 66 | C77: PRC | D77: 12380 | E77: 0193350-56.2024.3.00.0000 | F77: Alimentar | G77: Instituto Nacional do Seguro Social - INSS | H77: Idoso | I77: 147111.21 | J77: 2025-04-01
B78: 67 | C78: PRC | D78: 12381 | E78: 0193368-77.2024.3.00.0000 | F78: Alimentar | G78: Instituto Nacional do Seguro Social - INSS | H78: Idoso | I78: 153529.34 | J78: 2025-04-01
B79: 68 | C79: PRC | D79: 12382 | E79: 0193414-66.2024.3.00.0000 | F79: Alimentar | G79: Instituto Nacional do Seguro Social - INSS | H79: Idoso | I79: 194624.31 | J79: 2025-04-01
B80: 69 | C80: PRC | D80: 12383 | E80: 0193421-58.2024.3.00.0000 | F80: Alimentar | G80: Instituto Nacional do Seguro Social - INSS | H80: Idoso | I80: 190565.32 | J80: 2025-04-01
B81: 70 | C81: PRC | D81: 12384 | E81: 0193452-78.2024.3.00.0000 | F81: Alimentar | G81: Instituto Nacional do Seguro Social - INSS | H81: Idoso | I81: 205812.4 | J81: 2025-04-01
B82: 71 | C82: PRC | D82: 12385 | E82: 0193460-55.2024.3.00.0000 | F82: Alimentar | G82: Instituto Nacional do Seguro Social - INSS | H82: Idoso | I82: 65322.73 | J82: 2025-04-01
B83: 72 | C83: PRC | D83: 12386 | E83: 0193464-92.2024.3.00.0000 | F83: Alimentar | G83: União | H83: Idoso | I83: 176501.61 | J83: 2025-04-01
B84: 73 | C84: PRC | D84: 12389 | E84: 0222543-19.2024.3.00.0000 | F84: Alimentar | G84: Instituto Nacional do Seguro Social - INSS | H84: Idoso | I84: 152520.37 | J84: 2025-04-01
B85: 74 | C85: PRC | D85: 12390 | E85: 0222562-25.2024.3.00.0000 | F85: Alimentar | G85: Instituto Nacional do Seguro Social - INSS | H85: Idoso | I85: 171327.43 | J85: 2025-04-01
B86: 75 | C86: PRC | D86: 12391 | E86: 0222606-44.2024.3.00.0000 | F86: Alimentar | G86: Instituto Nacional do Seguro Social - INSS | H86: Idoso | I86: 237208.45 | J86: 2025-04-01
B87: 76 | C87: PRC | D87: 12392 | E87: 0222631-57.2024.3.00.0000 | F87: Alimentar | G87: Instituto Nacional do Seguro Social - INSS | H87: Idoso | I87: 200826.38 | J87: 2025-04-01
B88: 77 | C88: PRC | D88: 12393 | E88: 0222634-12.2024.3.00.0000 | F88: Alimentar | G88: Instituto Nacional do Seguro Social - INSS | H88: Idoso | I88: 203208.48 | J88: 2025-04-01
B89: 78 | C89: PRC | D89: 12394 | E89: 0222710-36.2024.3.00.0000 | F89: Alimentar | G89: Instituto Nacional do Seguro Social - INSS | H89: Idoso | I89: 151064.19 | J89: 2025-04-01
B90: 79 | C90: PRC | D90: 12396 | E90: 0225041-88.2024.3.00.0000 | F90: Alimentar | G90: União | H90: Idoso | I90: 91021.05 | J90: 2025-04-01
B91: 80 | C91: PRC | D91: 12397 | E91: 0225191-69.2024.3.00.0000 | F91: Alimentar | G91: Instituto Nacional do Seguro Social - INSS | H91: - | I91: 95823.19 | J91: 2025-04-01
B92: 81 | C92: PRC | D92: 12399 | E92: 0225217-67.2024.3.00.0000 | F92: Alimentar | G92: Instituto Nacional do Seguro Social - INSS | H92: Idoso | I92: 176667.49 | J92: 2025-04-01
B93: 82 | C93: PRC | D93: 12400 | E93: 0225221-07.2024.3.00.0000 | F93: Alimentar | G93: Instituto Nacional do Seguro Social - INSS | H93: Idoso | I93: 175380.67 | J93: 2025-04-01
B94: 83 | C94: PRC | D94: 12401 | E94: 0225249-72.2024.3.00.0000 | F94: Alimentar | G94: Instituto Nacional do Seguro Social - INSS | H94: Idoso | I94: 178188.21 | J94: 2025-04-01
B95: 84 | C95: PRC | D95: 12402 | E95: 0225257-49.2024.3.00.0000 | F95: Alimentar | G95: Instituto Nacional do Seguro Social - INSS | H95: Idoso | I95: 198917.32 | J95: 2025-04-01
B96: 85 | C96: PRC | D96: 12403 | E96: 0225262-71.2024.3.00.0000 | F96: Alimentar | G96: Instituto Nacional do Seguro Social - INSS | H96: Idoso | I96: 166413.11 | J96: 2025-04-01
B97: 86 | C97: PRC | D97: 12404 | E97: 0225264-41.2024.3.00.0000 | F97: Alimentar | G97: Instituto Nacional do Seguro Social - INSS | H97: Idoso | I97: 174572.34 | J97: 2025-04-01
B98: 87 | C98: PRC | D98: 12405 | E98: 0225304-23.2024.3.00.0000 | F98: Alimentar | G98: Instituto Nacional do Seguro Social - INSS | H98: Idoso | I98: 117904.84 | J98: 2025-04-01
B99: 88 | C99: PRC | D99: 12406 | E99: 0225434-13.2024.3.00.0000 | F99: Alimentar | G99: Instituto Nacional do Seguro Social - INSS | H99: Idoso | I99: 82849.21 | J99: 2025-04-01
B100: 89 | C100: PRC | D100: 12407 | E100: 0225443-72.2024.3.00.0000 | F100: Alimentar | G100: Instituto Nacional do Seguro Social - INSS | H100: Idoso | I100: 94563.32 | J100: 2025-04-01
B101: 90 | C101: PRC | D101: 12408 | E101: 0225448-94.2024.3.00.0000 | F101: Alimentar | G101: Instituto Nacional do Seguro Social - INSS | H101: Idoso | I101: 99165.43 | J101: 2025-04-01
B102: 91 | C102: PRC | D102: 12409 | E102: 0225451-49.2024.3.00.0000 | F102: Alimentar | G102: Instituto Nacional do Seguro Social - INSS | H102: - | I102: 68275.39 | J102: 2025-04-01
B103: 92 | C103: PRC | D103: 12411 | E103: 0225550-19.2024.3.00.0000 | F103: Alimentar | G103: União | H103: - | I103: 23111.76 | J103: 2025-04-01
B104: 93 | C104: PRC | D104: 12414 | E104: 0225567-55.2024.3.00.0000 | F104: Alimentar | G104: União | H104: Idoso | I104: 91002.57 | J104: 2025-04-01
B105: 94 | C105: PRC | D105: 12415 | E105: 0226756-68.2024.3.00.0000 | F105: Alimentar | G105: União | H105: - | I105: 2374.58 | J105: 2025-04-01
B106: 95 | C106: PRC | D106: 12416 | E106: 0226767-97.2024.3.00.0000 | F106: Alimentar | G106: Instituto Nacional do Seguro Social - INSS | H106: - | I106: 934.83 | J106: 2025-04-01
B107: 96 | C107: PRC | D107: 12417 | E107: 0226916-93.2024.3.00.0000 | F107: Alimentar | G107: União | H107: - | I107: 656.08 | J107: 2025-04-01
B108: 97 | C108: PRC | D108: 12419 | E108: 0228722-66.2024.3.00.0000 | F108: Alimentar | G108: Instituto Nacional do Seguro Social - INSS | H108: Idoso | I108: 187936.69 | J108: 2025-04-01
B109: 98 | C109: PRC | D109: 12420 | E109: 0228725-21.2024.3.00.0000 | F109: Alimentar | G109: Instituto Nacional do Seguro Social - INSS | H109: - | I109: 185859.09 | J109: 2025-04-01
B110: 99 | C110: PRC | D110: 12421 | E110: 0228727-88.2024.3.00.0000 | F110: Alimentar | G110: Instituto Nacional do Seguro Social - INSS | H110: - | I110: 160653.87 | J110: 2025-04-01
B111: 100 | C111: PRC | D111: 12422 | E111: 0228734-80.2024.3.00.0000 | F111: Alimentar | G111: Instituto Nacional do Seguro Social - INSS | H111: Idoso | I111: 170996.91 | J111: 2025-04-01
B112: 101 | C112: PRC | D112: 12423 | E112: 0228735-65.2024.3.00.0000 | F112: Alimentar | G112: Instituto Nacional do Seguro Social - INSS | H112: - | I112: 170797.75 | J112: 2025-04-01
B113: 102 | C113: PRC | D113: 12424 | E113: 0228751-19.2024.3.00.0000 | F113: Alimentar | G113: Instituto Nacional do Seguro Social - INSS | H113: Idoso | I113: 151576.96 | J113: 2025-04-01
B114: 103 | C114: PRC | D114: 12425 | E114: 0228755-56.2024.3.00.0000 | F114: Alimentar | G114: Instituto Nacional do Seguro Social - INSS | H114: Idoso | I114: 160418.92 | J114: 2025-04-01
B115: 104 | C115: PRC | D115: 12426 | E115: 0228758-11.2024.3.00.0000 | F115: Alimentar | G115: Instituto Nacional do Seguro Social - INSS | H115: - | I115: 186444.4 | J115: 2025-04-01
B116: 105 | C116: PRC | D116: 12427 | E116: 0228778-02.2024.3.00.0000 | F116: Alimentar | G116: Instituto Nacional do Seguro Social - INSS | H116: Idoso | I116: 76143.25 | J116: 2025-04-01
B117: 106 | C117: PRC | D117: 12428 | E117: 0228785-91.2024.3.00.0000 | F117: Alimentar | G117: Instituto Nacional do Seguro Social - INSS | H117: Idoso | I117: 76892.92 | J117: 2025-04-01
B118: 107 | C118: PRC | D118: 12429 | E118: 0228824-88.2024.3.00.0000 | F118: Alimentar | G118: Instituto Nacional do Seguro Social - INSS | H118: - | I118: 46030.88 | J118: 2025-04-01
B119: 108 | C119: PRC | D119: 12432 | E119: 0231914-07.2024.3.00.0000 | F119: Alimentar | G119: União | H119: Idoso | I119: 117740.32 | J119: 2025-04-01
B120: 109 | C120: PRC | D120: 12433 | E120: 0232262-25.2024.3.00.0000 | F120: Alimentar | G120: Instituto Nacional do Seguro Social - INSS | H120: - | I120: 29042.82 | J120: 2025-04-01
B121: 110 | C121: PRC | D121: 12435 | E121: 0232265-77.2024.3.00.0000 | F121: Alimentar | G121: União | H121: - | I121: 554665.32 | J121: 2025-04-01
B122: 111 | C122: PRC | D122: 12436 | E122: 0232267-47.2024.3.00.0000 | F122: Alimentar | G122: União | H122: - | I122: 433914.3 | J122: 2025-04-01
B123: 112 | C123: PRC | D123: 12438 | E123: 0231958-26.2024.3.00.0000 | F123: Alimentar | G123: União | H123: - | I123: 43512.86 | J123: 2025-04-01
B124: 113 | C124: PRC | D124: 12439 | E124: 0234622-30.2024.3.00.0000 | F124: Alimentar | G124: União | H124: Idoso | I124: 91114.18 | J124: 2025-04-01
B125: 114 | C125: PRC | D125: 12440 | E125: 0234748-80.2024.3.00.0000 | F125: Alimentar | G125: União | H125: Idoso | I125: 121661.7 | J125: 2025-04-01
B126: 115 | C126: PRC | D126: 12441 | E126: 0234760-94.2024.3.00.0000 | F126: Alimentar | G126: União | H126: Idoso | I126: 12827.22 | J126: 2025-04-01
B127: 116 | C127: PRC | D127: 12442 | E127: 0234766-04.2024.3.00.0000 | F127: Alimentar | G127: União | H127: Idoso | I127: 7604.57 | J127: 2025-04-01
B128: 117 | C128: PRC | D128: 12443 | E128: 0234782-55.2024.3.00.0000 | F128: Alimentar | G128: União | H128: - | I128: 76333.41 | J128: 2025-04-01
B129: 118 | C129: PRC | D129: 12445 | E129: 0236915-70.2024.3.00.0000 | F129: Alimentar | G129: União | H129: - | I129: 138254.8 | J129: 2025-04-01
B130: 119 | C130: PRC | D130: 12447 | E130: 0236973-73.2024.3.00.0000 | F130: Alimentar | G130: União | H130: - | I130: 195600.17 | J130: 2025-04-01
B131: 120 | C131: PRC | D131: 12450 | E131: 0236988-42.2024.3.00.0000 | F131: Alimentar | G131: Instituto Nacional do Seguro Social - INSS | H131: Idoso | I131: 205100.37 | J131: 2025-04-01
B132: 121 | C132: PRC | D132: 12451 | E132: 0237032-61.2024.3.00.0000 | F132: Alimentar | G132: Instituto Nacional do Seguro Social - INSS | H132: Idoso | I132: 303362.75 | J132: 2025-04-01
B133: 122 | C133: PRC | D133: 12453 | E133: 0237913-38.2024.3.00.0000 | F133: Alimentar | G133: União | H133: - | I133: 144754.47 | J133: 2025-04-01
B134: 123 | C134: PRC | D134: 12454 | E134: 0300798-88.2024.3.00.0000 | F134: Alimentar | G134: União | H134: Idoso | I134: 94207.34 | J134: 2025-04-01
B135: 124 | C135: PRC | D135: 12456 | E135: 0300873-30.2024.3.00.0000 | F135: Alimentar | G135: União | H135: Idoso | I135: 91336.54 | J135: 2025-04-01
B136: 125 | C136: PRC | D136: 12457 | E136: 0300926-11.2024.3.00.0000 | F136: Alimentar | G136: União | H136: Idoso | I136: 96926.04 | J136: 2025-04-01
B137: 126 | C137: PRC | D137: 12458 | E137: 0300934-85.2024.3.00.0000 | F137: Alimentar | G137: União | H137: Idoso | I137: 108467.36 | J137: 2025-04-01
B138: 127 | C138: PRC | D138: 12459 | E138: 0300939-10.2024.3.00.0000 | F138: Alimentar | G138: União | H138: Idoso | I138: 117946.62 | J138: 2025-04-01
B139: 128 | C139: PRC | D139: 12460 | E139: 0301150-46.2024.3.00.0000 | F139: Alimentar | G139: Instituto Nacional do Seguro Social - INSS | H139: - | I139: 48416.04 | J139: 2025-04-01
B140: 129 | C140: PRC | D140: 12461 | E140: 0300804-95.2024.3.00.0000 | F140: Alimentar | G140: União | H140: Idoso | I140: 117584.11 | J140: 2025-04-01
B141: 130 | C141: PRC | D141: 12462 | E141: 0302924-14.2024.3.00.0000 | F141: Alimentar | G141: Instituto Nacional do Seguro Social - INSS | H141: - | I141: 20194.36 | J141: 2025-04-01
B142: 131 | C142: PRC | D142: 12463 | E142: 0302944-05.2024.3.00.0000 | F142: Alimentar | G142: União | H142: - | I142: 2886.02 | J142: 2025-04-01
B143: 132 | C143: PRC | D143: 12465 | E143: 0303104-30.2024.3.00.0000 | F143: Alimentar | G143: Instituto Nacional do Seguro Social - INSS | H143: Idoso | I143: 202971.1 | J143: 2025-04-01
B144: 133 | C144: PRC | D144: 12466 | E144: 0311070-44.2024.3.00.0000 | F144: Alimentar | G144: União | H144: Idoso | I144: 17784.72 | J144: 2025-04-01
B145: 134 | C145: PRC | D145: 12467 | E145: 0311084-28.2024.3.00.0000 | F145: Alimentar | G145: União | H145: Idoso | I145: 96609.21 | J145: 2025-04-01
B146: 135 | C146: PRC | D146: 12468 | E146: 0311086-95.2024.3.00.0000 | F146: Alimentar | G146: União | H146: Idoso | I146: 106784.62 | J146: 2025-04-01
B147: 136 | C147: PRC | D147: 12469 | E147: 0311097-27.2024.3.00.0000 | F147: Alimentar | G147: União | H147: - | I147: 58526.59 | J147: 2025-04-01
B148: 137 | C148: PRC | D148: 12470 | E148: 0311102-49.2024.3.00.0000 | F148: Alimentar | G148: União | H148: Idoso | I148: 10873.95 | J148: 2025-04-01
B149: 138 | C149: PRC | D149: 12471 | E149: 0311139-76.2024.3.00.0000 | F149: Alimentar | G149: União | H149: Idoso | I149: 12782.36 | J149: 2025-04-01
B150: 139 | C150: PRC | D150: 12472 | E150: 0311145-83.2024.3.00.0000 | F150: Alimentar | G150: União | H150: Idoso | I150: 6649.87 | J150: 2025-04-01
B151: 140 | C151: PRC | D151: 12473 | E151: 0311161-37.2024.3.00.0000 | F151: Alimentar | G151: União | H151: Idoso | I151: 18290.32 | J151: 2025-04-01
B152: 141 | C152: PRC | D152: 12474 | E152: 0311190-87.2024.3.00.0000 | F152: Alimentar | G152: União | H152: Idoso | I152: 13355.14 | J152: 2025-04-01
B153: 142 | C153: PRC | D153: 12475 | E153: 0311191-72.2024.3.00.0000 | F153: Alimentar | G153: União | H153: Idoso | I153: 12207.32 | J153: 2025-04-01
B154: 143 | C154: PRC | D154: 12476 | E154: 0311214-18.2024.3.00.0000 | F154: Alimentar | G154: União | H154: - | I154: 100001.03 | J154: 2025-04-01
B155: 144 | C155: PRC | D155: 12477 | E155: 0311223-77.2024.3.00.0000 | F155: Alimentar | G155: União | H155: Idoso | I155: 106857.26 | J155: 2025-04-01
B156: 145 | C156: PRC | D156: 12478 | E156: 0311224-62.2024.3.00.0000 | F156: Alimentar | G156: União | H156: Idoso | I156: 112299.51 | J156: 2025-04-01
B157: 146 | C157: PRC | D157: 12480 | E157: 0315229-30.2024.3.00.0000 | F157: Alimentar | G157: União | H157: - | I157: 157158.17 | J157: 2025-04-01
B158: 147 | C158: PRC | D158: 12483 | E158: 0315273-49.2024.3.00.0000 | F158: Alimentar | G158: União | H158: Idoso | I158: 90830.27 | J158: 2025-04-01
B159: 148 | C159: PRC | D159: 12484 | E159: 0315278-71.2024.3.00.0000 | F159: Alimentar | G159: União | H159: - | I159: 41858.15 | J159: 2025-04-01
B160: 149 | C160: PRC | D160: 12487 | E160: 0315311-61.2024.3.00.0000 | F160: Alimentar | G160: União | H160: Idoso | I160: 11385.15 | J160: 2025-04-01
B161: 150 | C161: PRC | D161: 12488 | E161: 0315314-16.2024.3.00.0000 | F161: Alimentar | G161: União | H161: Idoso | I161: 8699.7 | J161: 2025-04-01
B162: 151 | C162: PRC | D162: 12489 | E162: 0315319-38.2024.3.00.0000 | F162: Alimentar | G162: União | H162: Idoso | I162: 22369.83 | J162: 2025-04-01
B163: 152 | C163: PRC | D163: 12490 | E163: 0315320-23.2024.3.00.0000 | F163: Alimentar | G163: União | H163: - | I163: 69664 | J163: 2025-04-01
B164: 153 | C164: PRC | D164: 12504 | E164: 0323369-53.2024.3.00.0000 | F164: Alimentar | G164: União | H164: Idoso | I164: 4695.3 | J164: 2025-04-01
B165: 154 | C165: PRC | D165: 12505 | E165: 0323376-45.2024.3.00.0000 | F165: Alimentar | G165: União | H165: Idoso | I165: 8993.43 | J165: 2025-04-01
B166: 155 | C166: PRC | D166: 12506 | E166: 0323380-82.2024.3.00.0000 | F166: Alimentar | G166: União | H166: Idoso | I166: 11624.91 | J166: 2025-04-01
B167: 156 | C167: PRC | D167: 12507 | E167: 0323416-27.2024.3.00.0000 | F167: Alimentar | G167: União | H167: Idoso | I167: 5873.24 | J167: 2025-04-01
B168: 157 | C168: PRC | D168: 12508 | E168: 0323446-62.2024.3.00.0000 | F168: Alimentar | G168: União | H168: Idoso | I168: 25964.68 | J168: 2025-04-01
B169: 158 | C169: PRC | D169: 12509 | E169: 0323448-32.2024.3.00.0000 | F169: Alimentar | G169: União | H169: - | I169: 8820.87 | J169: 2025-04-01
B170: 159 | C170: PRC | D170: 12511 | E170: 0328637-88.2024.3.00.0000 | F170: Alimentar | G170: União | H170: - | I170: 119443.18 | J170: 2025-04-01
B171: 160 | C171: PRC | D171: 12516 | E171: 0333776-21.2024.3.00.0000 | F171: Alimentar | G171: União | H171: Idoso | I171: 141395.95 | J171: 2025-04-01
B172: 161 | C172: PRC | D172: 12517 | E172: 0333807-41.2024.3.00.0000 | F172: Alimentar | G172: União | H172: Idoso | I172: 94996.36 | J172: 2025-04-01
B173: 162 | C173: PRC | D173: 12518 | E173: 0333808-26.2024.3.00.0000 | F173: Alimentar | G173: União | H173: - | I173: 53934.3 | J173: 2025-04-01
B174: 163 | C174: PRC | D174: 12519 | E174: 0333820-40.2024.3.00.0000 | F174: Alimentar | G174: União | H174: Idoso | I174: 2601.06 | J174: 2025-04-01
B175: 164 | C175: PRC | D175: 12520 | E175: 0333831-69.2024.3.00.0000 | F175: Alimentar | G175: União | H175: Idoso | I175: 121675.94 | J175: 2025-04-01
B176: 165 | C176: PRC | D176: 12521 | E176: 0333832-54.2024.3.00.0000 | F176: Alimentar | G176: União | H176: Idoso | I176: 2699.71 | J176: 2025-04-01
B177: 166 | C177: PRC | D177: 12522 | E177: 0333843-83.2024.3.00.0000 | F177: Alimentar | G177: União | H177: Idoso | I177: 2334.77 | J177: 2025-04-01
B178: 167 | C178: PRC | D178: 12523 | E178: 0333870-66.2024.3.00.0000 | F178: Alimentar | G178: União | H178: - | I178: 67986.64 | J178: 2025-04-01
B179: 168 | C179: PRC | D179: 12524 | E179: 0333873-21.2024.3.00.0000 | F179: Alimentar | G179: União | H179: Idoso | I179: 203845.3 | J179: 2025-04-01
B180: 169 | C180: PRC | D180: 12525 | E180: 0333875-88.2024.3.00.0000 | F180: Alimentar | G180: União | H180: Idoso | I180: 159949.83 | J180: 2025-04-01
B181: 170 | C181: PRC | D181: 12526 | E181: 0333892-27.2024.3.00.0000 | F181: Alimentar | G181: União | H181: Idoso | I181: 119376.81 | J181: 2025-04-01
B182: 171 | C182: PRC | D182: 12527 | E182: 0333896-64.2024.3.00.0000 | F182: Alimentar | G182: União | H182: Idoso | I182: 96230.29 | J182: 2025-04-01
B183: 172 | C183: PRC | D183: 12528 | E183: 0333901-86.2024.3.00.0000 | F183: Alimentar | G183: União | H183: Idoso | I183: 110523.17 | J183: 2025-04-01
B184: 173 | C184: PRC | D184: 12529 | E184: 0333905-26.2024.3.00.0000 | F184: Alimentar | G184: União | H184: - | I184: 83099.55 | J184: 2025-04-01
B185: 174 | C185: PRC | D185: 12531 | E185: 0358151-86.2024.3.00.0000 | F185: Alimentar | G185: União | H185: Idoso | I185: 111518.45 | J185: 2025-04-01
B186: 175 | C186: PRC | D186: 12532 | E186: 0358155-26.2024.3.00.0000 | F186: Alimentar | G186: União | H186: Idoso | I186: 7077.01 | J186: 2025-04-01
B187: 176 | C187: PRC | D187: 12533 | E187: 0358161-33.2024.3.00.0000 | F187: Alimentar | G187: União | H187: Idoso | I187: 2316 | J187: 2025-04-01
B188: 177 | C188: PRC | D188: 12534 | E188: 0358180-39.2024.3.00.0000 | F188: Alimentar | G188: União | H188: Idoso | I188: 3184.5 | J188: 2025-04-01
B189: 178 | C189: PRC | D189: 12535 | E189: 0358238-42.2024.3.00.0000 | F189: Alimentar | G189: União | H189: Idoso | I189: 6145.39 | J189: 2025-04-01
B190: 179 | C190: PRC | D190: 12536 | E190: 0358250-56.2024.3.00.0000 | F190: Alimentar | G190: União | H190: - | I190: 55931.2 | J190: 2025-04-01
B191: 180 | C191: PRC | D191: 12537 | E191: 0358969-38.2024.3.00.0000 | F191: Alimentar | G191: União | H191: - | I191: 28548.47 | J191: 2025-04-01
B192: 181 | C192: PRC | D192: 12540 | E192: 0362801-79.2024.3.00.0000 | F192: Alimentar | G192: União | H192: Idoso | I192: 76173.83 | J192: 2025-04-01
B193: 182 | C193: PRC | D193: 12542 | E193: 0363048-60.2024.3.00.0000 | F193: Alimentar | G193: União | H193: Idoso | I193: 89855.7 | J193: 2025-04-01
B194: 183 | C194: PRC | D194: 12543 | E194: 0363089-27.2024.3.00.0000 | F194: Alimentar | G194: União | H194: - | I194: 147521.47 | J194: 2025-04-01
B195: 184 | C195: PRC | D195: 12549 | E195: 0363301-48.2024.3.00.0000 | F195: Alimentar | G195: União | H195: - | I195: 327.67 | J195: 2025-04-01
B196: 185 | C196: PRC | D196: 12550 | E196: 0363342-15.2024.3.00.0000 | F196: Alimentar | G196: União | H196: Idoso | I196: 107337.61 | J196: 2025-04-01
B197: 186 | C197: PRC | D197: 12551 | E197: 0363792-55.2024.3.00.0000 | F197: Alimentar | G197: União | H197: - | I197: 7643.55 | J197: 2025-04-01
B198: 187 | C198: PRC | D198: 12558 | E198: 0367410-08.2024.3.00.0000 | F198: Alimentar | G198: União | H198: Idoso | I198: 112293.5 | J198: 2025-04-01
B199: 188 | C199: PRC | D199: 12559 | E199: 0369466-14.2024.3.00.0000 | F199: Alimentar | G199: Instituto Nacional do Seguro Social - INSS | H199: Idoso | I199: 172062.62 | J199: 2025-04-01
B200: 189 | C200: PRC | D200: 12561 | E200: 0369527-69.2024.3.00.0000 | F200: Alimentar | G200: União | H200: Idoso | I200: 116535.81 | J200: 2025-04-01
B201: 190 | C201: PRC | D201: 12562 | E201: 0369536-31.2024.3.00.0000 | F201: Alimentar | G201: União | H201: Idoso | I201: 91451.79 | J201: 2025-04-01
B202: 191 | C202: PRC | D202: 12563 | E202: 0369540-68.2024.3.00.0000 | F202: Alimentar | G202: União | H202: Idoso | I202: 95966.12 | J202: 2025-04-01
B203: 192 | C203: PRC | D203: 12564 | E203: 0369932-08.2024.3.00.0000 | F203: Alimentar | G203: União | H203: Idoso | I203: 90925.71 | J203: 2025-04-01
B204: 193 | C204: PRC | D204: 12565 | E204: 0369934-75.2024.3.00.0000 | F204: Alimentar | G204: União | H204: Idoso | I204: 92599.81 | J204: 2025-04-01
... 571 more rows

Sheet Indice (hidden)
A1: data | C1: SELIC | E1: data | F1: UFIR - IPCA-e | H1: salário mínimo | I1: taxa de juros da poupança | K1: Código da U.O
C2: MENSAL | D2: ACUMULADA | F2: variação | G2: valor histórico | K2: U.O | L2: Código
A3: 1 | B3: 2 | C3: 3 | D3: 4 | E3: 5 | F3: 6 | G3: 7 | H3: 8 | I3: 9
A4: 2005-01-01 | F4: 0.68 | G4: 1.605040097 | H4: 260 | K4: Ministério do Planejamento, Orçamento e Gestão | L4: 47000
A5: 2005-02-01 | F5: 0.74 | G5: 1.615954369 | H5: 260 | K5: Ministério da Saúde | L5: 36000
A6: 2005-03-01 | F6: 0.35 | G6: 1.627912432 | H6: 260 | K6: Ministério da Mulher, da Família e dos Direitos Humanos | L6: 81101
A7: 2005-04-01 | F7: 0.74 | G7: 1.633610125 | H7: 260 | K7: Ministério da Justiça | L7: 30000
A8: 2005-05-01 | F8: 0.83 | G8: 1.64569884 | H8: 300 | K8: Ministério da Fazenda | L8: 25000
A9: 2005-06-01 | F9: 0.12 | G9: 1.65935814 | H9: 300 | K9: Ministério da Economia | L9: 22000
A10: 2005-07-01 | F10: 0.11 | G10: 1.66134937 | H10: 300 | K10: Ministério da Defesa | L10: 52000
A11: 2005-08-01 | F11: 0.28 | G11: 1.663176854 | H11: 300 | K11: Ministério da Administração Federal e Reforma do Estado | L11: -
A12: 2005-09-01 | F12: 0.16 | G12: 1.66783375 | H12: 300 | K12: Instituto Nacional do Seguro Social - INSS | L12: 25303
A13: 2005-10-01 | F13: 0.56 | G13: 1.670502284 | H13: 300 | K13: INCRA | L13: 22201
A14: 2005-11-01 | F14: 0.78 | G14: 1.679857096 | H14: 300 | K14: Departamento Nacional de Obras contra as Secas - DNOCS | L14: 53204
A15: 2005-12-01 | F15: 0.38 | G15: 1.692959982 | H15: 300 | K15: Controladoria Geral da União - CGU | L15: -
A16: 2006-01-01 | F16: 0.51 | G16: 1.69939323 | H16: 300
A17: 2006-02-01 | F17: 0.52 | G17: 1.708060135 | H17: 300
A18: 2006-03-01 | F18: 0.37 | G18: 1.716942048 | H18: 300
A19: 2006-04-01 | F19: 0.17 | G19: 1.723294733 | H19: 350
A20: 2006-05-01 | F20: 0.27 | G20: 1.726224335 | H20: 350
A21: 2006-06-01 | F21: -0.15 | G21: 1.73088514 | H21: 350
A22: 2006-07-01 | F22: -0.02 | G22: 1.728288813 | H22: 350
A23: 2006-08-01 | F23: 0.19 | G23: 1.727943155 | H23: 350
A24: 2006-09-01 | F24: 0.05 | G24: 1.731226247 | H24: 350
A25: 2006-10-01 | F25: 0.29 | G25: 1.73209186 | H25: 350
A26: 2006-11-01 | F26: 0.37 | G26: 1.737114926 | H26: 350
A27: 2006-12-01 | F27: 0.35 | G27: 1.743542251 | H27: 350
A28: 2007-01-01 | F28: 0.52 | G28: 1.749644649 | H28: 350
A29: 2007-02-01 | F29: 0.46 | G29: 1.758742802 | H29: 350
A30: 2007-03-01 | F30: 0.41 | G30: 1.766833018 | H30: 350
A31: 2007-04-01 | F31: 0.22 | G31: 1.774077034 | H31: 380
A32: 2007-05-01 | F32: 0.26 | G32: 1.777980003 | H32: 380
A33: 2007-06-01 | F33: 0.29 | G33: 1.782602751 | H33: 380
A34: 2007-07-01 | F34: 0.24 | G34: 1.787772299 | H34: 380
A35: 2007-08-01 | F35: 0.42 | G35: 1.792062953 | H35: 380
A36: 2007-09-01 | F36: 0.29 | G36: 1.799589617 | H36: 380
A37: 2007-10-01 | F37: 0.24 | G37: 1.804808427 | H37: 380
A38: 2007-11-01 | F38: 0.23 | G38: 1.809139967 | H38: 380
A39: 2007-12-01 | F39: 0.7 | G39: 1.813300989 | H39: 380
A40: 2008-01-01 | F40: 0.7 | G40: 1.825994096 | H40: 380
A41: 2008-02-01 | F41: 0.64 | G41: 1.838776055 | H41: 380
A42: 2008-03-01 | F42: 0.23 | G42: 1.850544222 | H42: 415
A43: 2008-04-01 | F43: 0.59 | G43: 1.854800473 | H43: 415
A44: 2008-05-01 | F44: 0.56 | G44: 1.865743796 | H44: 415
A45: 2008-06-01 | F45: 0.9 | G45: 1.876191961 | H45: 415
A46: 2008-07-01 | F46: 0.63 | G46: 1.893077689 | H46: 415
A47: 2008-08-01 | F47: 0.35 | G47: 1.905004078 | H47: 415
A48: 2008-09-01 | F48: 0.26 | G48: 1.911671593 | H48: 415
A49: 2008-10-01 | F49: 0.3 | G49: 1.916641939 | H49: 415
A50: 2008-11-01 | F50: 0.49 | G50: 1.922391865 | H50: 415
A51: 2008-12-01 | F51: 0.29 | G51: 1.931811585 | H51: 415
A52: 2009-01-01 | F52: 0.4 | G52: 1.937413838 | H52: 415
A53: 2009-02-01 | F53: 0.63 | G53: 1.945163494 | H53: 465
A54: 2009-03-01 | F54: 0.11 | G54: 1.957418024 | H54: 465
A55: 2009-04-01 | F55: 0.36 | G55: 1.959571184 | H55: 465
A56: 2009-05-01 | F56: 0.59 | G56: 1.96662564 | H56: 465
A57: 2009-06-01 | F57: 0.38 | G57: 1.978228731 | H57: 465
A58: 2009-07-01 | F58: 0.22 | G58: 1.985746 | H58: 465
A59: 2009-08-01 | F59: 0.23 | G59: 1.990114642 | H59: 465
A60: 2009-09-01 | F60: 0.19 | G60: 1.994691905 | H60: 465
A61: 2009-10-01 | F61: 0.18 | G61: 1.99848182 | H61: 465
A62: 2009-11-01 | F62: 0.44 | G62: 2.002079087 | H62: 465
A63: 2009-12-01 | E63: 2010-01-01 | F63: 0.38 | G63: 2.010888235 | H63: 465
A64: 2010-01-01 | E64: 2010-01-01 | F64: 0.52 | G64: 2.01852961 | H64: 510
A65: 2010-02-01 | E65: 2010-02-01 | F65: 0.94 | G65: 2.029025964 | H65: 510
A66: 2010-03-01 | E66: 2010-03-01 | F66: 0.55 | G66: 2.048098808 | H66: 510
A67: 2010-04-01 | E67: 2010-04-01 | F67: 0.48 | G67: 2.059363352 | H67: 510
A68: 2010-05-01 | E68: 2010-05-01 | F68: 0.63 | G68: 2.069248296 | H68: 510
A69: 2010-06-01 | E69: 2010-06-01 | F69: 0.19 | G69: 2.08228456 | H69: 510
A70: 2010-07-01 | E70: 2010-07-01 | F70: -0.09 | G70: 2.086240901 | H70: 510
A71: 2010-08-01 | E71: 2010-08-01 | F71: -0.05 | G71: 2.084363284 | H71: 510
A72: 2010-09-01 | E72: 2010-09-01 | F72: 0.31 | G72: 2.083321102 | H72: 510
A73: 2010-10-01 | E73: 2010-10-01 | F73: 0.62 | G73: 2.089779398 | H73: 510
A74: 2010-11-01 | E74: 2010-11-01 | F74: 0.86 | G74: 2.10273603 | H74: 510
A75: 2010-12-01 | E75: 2010-12-01 | F75: 0.69 | G75: 2.12081956 | H75: 510
A76: 2011-01-01 | E76: 2011-01-01 | F76: 0.76 | G76: 2.135453215 | H76: 540
A77: 2011-02-01 | E77: 2011-02-01 | F77: 0.97 | G77: 2.151682659 | H77: 540
A78: 2011-03-01 | E78: 2011-03-01 | F78: 0.6 | G78: 2.172553981 | H78: 545
A79: 2011-04-01 | E79: 2011-04-01 | F79: 0.77 | G79: 2.185589305 | H79: 545
A80: 2011-05-01 | E80: 2011-05-01 | F80: 0.7 | G80: 2.202418343 | H80: 545
A81: 2011-06-01 | E81: 2011-06-01 | F81: 0.23 | G81: 2.217835271 | H81: 545
A82: 2011-07-01 | E82: 2011-07-01 | F82: 0.1 | G82: 2.222936292 | H82: 545
A83: 2011-08-01 | E83: 2011-08-01 | F83: 0.27 | G83: 2.225159228 | H83: 545
A84: 2011-09-01 | E84: 2011-09-01 | F84: 0.53 | G84: 2.231167158 | H84: 545
A85: 2011-10-01 | E85: 2011-10-01 | F85: 0.42 | G85: 2.242992344 | H85: 545
A86: 2011-11-01 | E86: 2011-11-01 | F86: 0.46 | G86: 2.252412912 | H86: 545
A87: 2011-12-01 | E87: 2011-12-01 | F87: 0.56 | G87: 2.262774012 | H87: 545
A88: 2012-01-01 | E88: 2012-01-01 | F88: 0.65 | G88: 2.275445546 | H88: 622
A89: 2012-02-01 | E89: 2012-02-01 | F89: 0.53 | G89: 2.290235942 | H89: 622
A90: 2012-03-01 | E90: 2012-03-01 | F90: 0.25 | G90: 2.302374193 | H90: 622
A91: 2012-04-01 | E91: 2012-04-01 | F91: 0.43 | G91: 2.308130128 | H91: 622
A92: 2012-05-01 | E92: 2012-05-01 | F92: 0.51 | G92: 2.318055088 | H92: 622
A93: 2012-06-01 | E93: 2012-06-01 | F93: 0.18 | G93: 2.329877169 | H93: 622
A94: 2012-07-01 | E94: 2012-07-01 | F94: 0.33 | G94: 2.334070947 | H94: 622
A95: 2012-08-01 | E95: 2012-08-01 | F95: 0.39 | G95: 2.341773382 | H95: 622
A96: 2012-09-01 | E96: 2012-09-01 | F96: 0.48 | G96: 2.350906298 | H96: 622
A97: 2012-10-01 | E97: 2012-10-01 | F97: 0.65 | G97: 2.362190648 | H97: 622
A98: 2012-11-01 | E98: 2012-11-01 | F98: 0.54 | G98: 2.377544887 | H98: 622
A99: 2012-12-01 | E99: 2012-12-01 | F99: 0.69 | G99: 2.39038363 | H99: 622
A100: 2013-01-01 | E100: 2013-01-01 | F100: 0.88 | G100: 2.406877277 | H100: 678
A101: 2013-02-01 | E101: 2013-02-01 | F101: 0.68 | G101: 2.428057797 | H101: 678
A102: 2013-03-01 | E102: 2013-03-01 | F102: 0.49 | G102: 2.44456859 | H102: 678
A103: 2013-04-01 | E103: 2013-04-01 | F103: 0.51 | G103: 2.456546976 | H103: 678
A104: 2013-05-01 | E104: 2013-05-01 | F104: 0.46 | G104: 2.469075365 | H104: 678
A105: 2013-06-01 | E105: 2013-06-01 | F105: 0.38 | G105: 2.480433112 | H105: 678
A106: 2013-07-01 | E106: 2013-07-01 | F106: 0.07 | G106: 2.489858758 | H106: 678
A107: 2013-08-01 | E107: 2013-08-01 | F107: 0.16 | G107: 2.491601659 | H107: 678
A108: 2013-09-01 | E108: 2013-09-01 | F108: 0.27 | G108: 2.495588222 | H108: 678
A109: 2013-10-01 | E109: 2013-10-01 | F109: 0.48 | G109: =IF(F108="","",G108+(G108*F108/100)) -> 2.50232631 | H109: 678
A110: 2013-11-01 | E110: 2013-11-01 | F110: 0.57 | G110: =IF(F109="","",G109+(G109*F109/100)) -> 2.514337476 | H110: 678
A111: 2013-12-01 | E111: 2013-12-01 | F111: 0.75 | G111: 2.5286692 | H111: 678
A112: 2014-01-01 | E112: 2014-01-01 | F112: 0.67 | G112: 2.547634219 | H112: 724
A113: 2014-02-01 | E113: 2014-02-01 | F113: 0.7 | G113: 2.564703368 | H113: 724
A114: 2014-03-01 | E114: 2014-03-01 | F114: 0.73 | G114: 2.582656292 | H114: 724
A115: 2014-04-01 | E115: 2014-04-01 | F115: 0.78 | G115: 2.601509683 | H115: 724
A116: 2014-05-01 | E116: 2014-05-01 | F116: 0.58 | G116: 2.621801458 | H116: 724
A117: 2014-06-01 | E117: 2014-06-01 | F117: 0.47 | G117: 2.637007907 | H117: 724
A118: 2014-07-01 | E118: 2014-07-01 | F118: 0.17 | G118: 2.649401844 | H118: 724
A119: 2014-08-01 | E119: 2014-08-01 | F119: 0.14 | G119: 2.653905827 | H119: 724
A120: 2014-09-01 | E120: 2014-09-01 | F120: 0.39 | G120: 2.657621295 | H120: 724
A121: 2014-10-01 | E121: 2014-10-01 | F121: 0.48 | G121: 2.667986018 | H121: 724
A122: 2014-11-01 | E122: 2014-11-01 | F122: 0.38 | G122: 2.680792351 | H122: 724
A123: 2014-12-01 | E123: 2014-12-01 | F123: 0.79 | G123: 2.690979362 | H123: 724
A124: 2015-01-01 | E124: 2015-01-01 | F124: 0.89 | G124: 2.712238099 | H124: 788
A125: 2015-02-01 | E125: 2015-02-01 | F125: 1.33 | G125: 2.736377018 | H125: 788
A126: 2015-03-01 | E126: 2015-03-01 | F126: 1.24 | G126: 2.772770832 | H126: 788
A127: 2015-04-01 | E127: 2015-04-01 | F127: 1.07 | G127: 2.807153191 | H127: 788
A128: 2015-05-01 | E128: 2015-05-01 | F128: 0.6 | G128: 2.83718973 | H128: 788
A129: 2015-06-01 | E129: 2015-06-01 | F129: 0.99 | G129: 2.854212868 | H129: 788
A130: 2015-07-01 | E130: 2015-07-01 | F130: 0.59 | G130: 2.882469575 | H130: 788
A131: 2015-08-01 | E131: 2015-08-01 | F131: 0.43 | G131: 2.899476146 | H131: 788
A132: 2015-09-01 | E132: 2015-09-01 | F132: 0.39 | G132: 2.911943893 | H132: 788
A133: 2015-10-01 | E133: 2015-10-01 | F133: 0.66 | G133: =IF(F132="","",G132+(G132*F132/100)) -> 2.923300475 | H133: 788
A134: 2015-11-01 | E134: 2015-11-01 | F134: 0.85 | G134: 2.942594258 | H134: 788
A135: 2015-12-01 | E135: 2015-12-01 | F135: 1.18 | G135: 2.967606309 | H135: 788
A136: 2016-01-01 | E136: 2016-01-01 | F136: 0.92 | G136: 3.002624063 | H136: 880
A137: 2016-02-01 | E137: 2016-02-01 | F137: 1.42 | G137: 3.030248205 | H137: 880
A138: 2016-03-01 | E138: 2016-03-01 | F138: 0.43 | G138: 3.073277729 | H138: 880
A139: 2016-04-01 | E139: 2016-04-01 | F139: 0.51 | G139: 3.086492823 | H139: 880
A140: 2016-05-01 | E140: 2016-05-01 | F140: 0.86 | G140: 3.102233937 | H140: 880
A141: 2016-06-01 | E141: 2016-06-01 | F141: 0.4 | G141: 3.128913149 | H141: 880
A142: 2016-07-01 | E142: 2016-07-01 | F142: 0.54 | G142: 3.141428801 | H142: 880
A143: 2016-08-01 | E143: 2016-08-01 | F143: 0.45 | G143: 3.158392517 | H143: 880
A144: 2016-09-01 | E144: 2016-09-01 | F144: 0.23 | G144: 3.172605283 | H144: 880
A145: 2016-10-01 | E145: 2016-10-01 | F145: 0.19 | G145: 3.179902275 | H145: 880
A146: 2016-11-01 | E146: 2016-11-01 | F146: 0.26 | G146: 3.18594409 | H146: 880
A147: 2016-12-01 | E147: 2016-12-01 | F147: 0.19 | G147: 3.194227544 | H147: 880
A148: 2017-01-01 | E148: 2017-01-01 | F148: 0.31 | G148: 3.200296577 | H148: 937
A149: 2017-02-01 | E149: 2017-02-01 | F149: 0.54 | G149: 3.210217496 | H149: 937
A150: 2017-03-01 | E150: 2017-03-01 | F150: 0.15 | G150: 3.22755267 | H150: 937
A151: 2017-04-01 | E151: 2017-04-01 | F151: 0.21 | G151: 3.232393999 | H151: 937
A152: 2017-05-01 | E152: 2017-05-01 | F152: 0.24 | G152: 3.239182027 | H152: 937
A153: 2017-06-01 | E153: 2017-06-01 | F153: 0.16 | G153: 3.246956064 | H153: 937
A154: 2017-07-01 | E154: 2017-07-01 | F154: -0.18 | G154: 3.252151193 | H154: 937
A155: 2017-08-01 | E155: 2017-08-01 | F155: 0.35 | G155: 3.246297321 | H155: 937
A156: 2017-09-01 | E156: 2017-09-01 | F156: 0.11 | G156: 3.257659362 | H156: 937
A157: 2017-10-01 | E157: 2017-10-01 | F157: 0.34 | G157: 3.261242787 | H157: 937
A158: 2017-11-01 | E158: 2017-11-01 | F158: 0.32 | G158: 3.272331013 | H158: 937
A159: 2017-12-01 | E159: 2017-12-01 | F159: 0.35 | G159: 3.282802472 | H159: 937
A160: 2018-01-01 | E160: 2018-01-01 | F160: 0.39 | G160: 3.294292281 | H160: 954 | I160: 0.3994
A161: 2018-02-01 | E161: 2018-02-01 | F161: 0.38 | G161: 3.30714002 | H161: 954 | I161: 0.3994
A162: 2018-03-01 | E162: 2018-03-01 | F162: 0.1 | G162: 3.319707153 | H162: 954 | I162: 0.3855
A163: 2018-04-01 | E163: 2018-04-01 | F163: 0.21 | G163: 3.32302686 | H163: 954 | I163: 0.3715
A164: 2018-05-01 | E164: 2018-05-01 | F164: 0.14 | G164: 3.330005216 | H164: 954 | I164: 0.3715
A165: 2018-06-01 | E165: 2018-06-01 | F165: 1.11 | G165: 3.334667223 | H165: 954 | I165: 0.3715
A166: 2018-07-01 | E166: 2018-07-01 | F166: 0.64 | G166: 3.37168203 | H166: 954 | I166: 0.3715
A167: 2018-08-01 | E167: 2018-08-01 | F167: 0.13 | G167: 3.393260795 | H167: 954 | I167: 0.3715
A168: 2018-09-01 | E168: 2018-09-01 | F168: 0.09 | G168: 3.397672034 | H168: 954 | I168: 0.3715
A169: 2018-10-01 | E169: 2018-10-01 | F169: 0.58 | G169: 3.400729939 | H169: 954 | I169: 0.3715
A170: 2018-11-01 | E170: 2018-11-01 | F170: 0.19 | G170: 3.420454172 | H170: 954 | I170: 0.3715
A171: 2018-12-01 | E171: 2018-12-01 | F171: -0.16 | G171: 3.426953035 | H171: 954 | I171: 0.3715
A172: 2019-01-01 | E172: 2019-01-01 | F172: 0.3 | G172: 3.42146991 | H172: 998 | I172: 0.3715
A173: 2019-02-01 | E173: 2019-02-01 | F173: 0.34 | G173: 3.43173432 | H173: 998 | I173: 0.3715
A174: 2019-03-01 | E174: 2019-03-01 | F174: 0.54 | G174: 3.443402217 | H174: 998 | I174: 0.3715
A175: 2019-04-01 | E175: 2019-04-01 | F175: 0.72 | G175: 3.461996589 | H175: 998 | I175: 0.3715
A176: 2019-05-01 | E176: 2019-05-01 | F176: 0.35 | G176: 3.486922964 | H176: 998 | I176: 0.3715
A177: 2019-06-01 | E177: 2019-06-01 | F177: 0.06 | G177: 3.499127194 | H177: 998 | I177: 0.3715
A178: 2019-07-01 | E178: 2019-07-01 | F178: 0.09 | G178: 3.501226671 | H178: 998 | I178: 0.3715
A179: 2019-08-01 | E179: 2019-08-01 | F179: 0.08 | G179: 3.504377775 | H179: 998 | I179: 0.3434
A180: 2019-09-01 | E180: 2019-09-01 | F180: 0.09 | G180: 3.507181277 | H180: 998 | I180: 0.3434
A181: 2019-10-01 | E181: 2019-10-01 | F181: 0.09 | G181: =IF(F180="","",G180+(G180*F180/100)) -> 3.51033774 | H181: 998 | I181: 0.3153
A182: 2019-11-01 | E182: 2019-11-01 | F182: 0.14 | G182: 3.513497044 | H182: 998 | I182: 0.2871
A183: 2019-12-01 | E183: 2019-12-01 | F183: 1.05 | G183: 3.51841594 | H183: 998 | I183: 0.2871
A184: 2020-01-01 | E184: 2020-01-01 | F184: 0.71 | G184: 3.555359307 | H184: 998 | I184: 0.2588
A185: 2020-02-01 | E185: 2020-02-01 | F185: 0.22 | G185: 3.580602358 | H185: 998 | I185: 0.2588
A186: 2020-03-01 | E186: 2020-03-01 | F186: 0.02 | G186: 3.588479684 | H186: 998 | I186: 0.2446
A187: 2020-04-01 | E187: 2020-04-01 | F187: -0.01 | G187: 3.589197379 | H187: 998 | I187: 0.2162
A188: 2020-05-01 | E188: 2020-05-01 | F188: -0.59 | G188: 3.58883846 | H188: 998 | I188: 0.2162
A189: 2020-06-01 | E189: 2020-06-01 | F189: 0.02 | G189: 3.567664313 | H189: 998 | I189: 0.1733
A190: 2020-07-01 | E190: 2020-07-01 | F190: 0.3 | G190: 3.568377846 | H190: 998 | I190: 0.1303
A191: 2020-08-01 | E191: 2020-08-01 | F191: 0.23 | G191: 3.579082979 | H191: 998 | I191: 0.1303
A192: 2020-09-01 | E192: 2020-09-01 | F192: 0.45 | G192: 3.58731487 | H192: 998 | I192: 0.1159
A193: 2020-10-01 | E193: 2020-10-01 | F193: 0.94 | G193: 3.603457787 | H193: 998 | I193: 0.1159
A194: 2020-11-01 | E194: 2020-11-01 | F194: 0.81 | G194: 3.63733029 | H194: 998 | I194: 0.1159
A195: 2020-12-01 | E195: 2020-12-01 | F195: 1.06 | G195: 3.666792666 | H195: 998 | I195: 0.1159
A196: 2021-01-01 | C196: 0.15 | E196: 2021-01-01 | F196: 0.78 | G196: 3.705660668 | H196: 1045 | I196: 0.1159
A197: 2021-02-01 | C197: 0.13 | D197: =IF(C196="","",D196+C196) -> 0.15 | E197: 2021-02-01 | F197: 0.48 | G197: 3.734564821 | H197: 1045 | I197: 0.1159
A198: 2021-03-01 | C198: 0.2 | E198: 2021-03-01 | F198: 0.93 | G198: 3.752490732 | H198: 1045 | I198: 0.1159
A199: 2021-04-01 | C199: 0.21 | E199: 2021-04-01 | F199: 0.6 | G199: 3.787388896 | H199: 1045 | I199: 0.159
A200: 2021-05-01 | C200: 0.27 | E200: 2021-05-01 | F200: 0.44 | G200: 3.810113229 | H200: 1045 | I200: 0.159
... 69 more rows

Sheet VALIDAÇÃO (hidden)
C3: data base | D3: taxa | F3: CÓDIGO U.O | H3: UNIDADE ORÇAMENTÁRIA | I3: CÓDIGO | K3: ÓRGÃO DE ORIGEM no PCR | L3: Unidade Orçamentária ATUAL | M3: CÓDIGO U.O | N3: Unidade Orçamentária ATUAL
F4: 37101 | H4: Controladoria Geral da União - CGU | I4: - | K4: Controladoria Geral da União - CGU | L4: Controladoria-Geral da União - Administração Direta | M4: 37101 | N4: Controladoria-Geral da União - Administração Direta
C5: 2022-05-01 | D5: 11.69 | F5: 53204 | H5: Departamento Nacional de Obras contra as Secas - DNOCS | I5: 53204 | K5: Departamento Nacional de Obras contra as Secas - DNOCS | L5: Departamento Nacional de Obras Contra as Secas - DNOCS | M5: 53204 | N5: Departamento Nacional de Obras Contra as Secas - DNOCS
C6: 2022-06-01 | D6: 10.66 | F6: 36901 | H6: Fundo Nacional de Saúde | I6: 36901 | K6: Fundo Nacional de Saúde | L6: Fundo Nacional de Saúde | M6: 36901 | N6: Fundo Nacional de Saúde
C7: 2022-07-01 | D7: 9.64 | F7: 49201 | H7: INCRA | I7: 22201 | K7: INCRA | L7: Instituto Nacional de Colonização e Reforma Agrária - INCRA | M7: 49201 | N7: Instituto Nacional de Colonização e Reforma Agrária - INCRA
C8: 2022-08-01 | D8: 8.61 | F8: 33201 | H8: Instituto Nacional do Seguro Social - INSS | I8: 40201 | K8: Instituto Nacional do Seguro Social - INSS | L8: Instituto Nacional do Seguro Social | M8: 33201 | N8: Instituto Nacional do Seguro Social
C9: 2022-09-01 | D9: 7.44 | F9: 46101 | H9: Ministério da Administração Federal e Reforma do Estado | I9: - | K9: Ministério da Administração Federal e Reforma do Estado | L9: Ministério da Gestão e da Inovação em Serviços Públicos - Administração Direta | M9: 46101 | N9: Ministério da Gestão e da Inovação em Serviços Públicos - Administração Direta
C10: 2022-10-01 | D10: 6.37 | F10: 52101 | H10: Ministério da Defesa | I10: 52101 | K10: Ministério da Defesa | L10: Ministério da Defesa - Administração Direta | M10: 52101 | N10: Ministério da Defesa - Administração Direta
C11: 2022-11-01 | D11: 5.35 | F11: 25101 | H11: Ministério da Economia | I11: 25101 | K11: Ministério da Economia | L11: Ministério da Fazenda - Administração Direta | M11: 25101 | N11: Ministério da Fazenda - Administração Direta
C12: 2022-12-01 | D12: 4.33 | F12: 25101 | H12: Ministério da Fazenda | I12: 25101 | K12: Ministério da Fazenda | L12: Ministério da Fazenda - Administração Direta | M12: 25101 | N12: Ministério da Fazenda - Administração Direta
C13: 2023-01-01 | D13: 3.21 | F13: 30101 | H13: Ministério da Justiça | I13: 30101 | K13: Ministério da Justiça | L13: Ministério da Justiça e Segurança Pública - Administração Direta | M13: 30101 | N13: Ministério da Justiça e Segurança Pública - Administração Direta
C14: 2023-02-01 | D14: 2.09 | F14: 55101 | H14: Ministério da Mulher, da Família e dos Direitos Humanos | I14: 81101 | K14: Ministério da Mulher, da Família e dos Direitos Humanos | L14: Ministério do Desenvolvimento e Assistência Social, Família e Combate à Fome - Adm. Direta | M14: 55101 | N14: Ministério do Desenvolvimento e Assistência Social, Família e Combate à Fome - Adm. Direta
C15: 2023-03-01 | D15: 1.17 | F15: 33101 | H15: Ministério da Saúde | I15: 36000 | K15: Ministério da Previdência Social | L15: Ministério da Previdência Social - Administração Direta | M15: 33101 | N15: Ministério da Previdência Social - Administração Direta
F16: 36901 | H16: Ministério do Planejamento, Orçamento e Gestão | I16: 47000 | K16: Ministério da Saúde | L16: Fundo Nacional de Saúde | M16: 36901 | N16: Fundo Nacional de Saúde
F17: 35101 | H17: Ministério do Trabalho e Previdência | I17: 40101 | K17: Ministério das Relações Exteriores | L17: Ministério das Relações Exteriores - Administração Direta | M17: 35101 | N17: Ministério das Relações Exteriores - Administração Direta
F18: 32101 | H18: - | I18: - | K18: Ministério de Minas e Energia | L18: Ministério de Minas e Energia - Administração Direta | M18: 32101 | N18: Ministério de Minas e Energia - Administração Direta
F19: 47101 | H19: - | I19: - | K19: Ministério do Planejamento, Orçamento e Gestão | L19: Ministério do Planejamento e Orçamento - Administração Direta | M19: 47101 | N19: Ministério do Planejamento e Orçamento - Administração Direta
F20: 40101 | H20: - | I20: - | K20: Ministério do Trabalho | L20: Ministério do Trabalho e Emprego - Administração Direta | M20: 40101 | N20: Ministério do Trabalho e Emprego - Administração Direta
F21: 40101 | H21: - | I21: - | K21: Ministério do Trabalho e Previdência | L21: Ministério do Trabalho e Emprego - Administração Direta | M21: 40101 | N21: Ministério do Trabalho e Emprego - Administração Direta
F22: 22101 | H22: - | I22: - | K22: Ministério da Agricultura Pecuária e Abastecimento | L22: Ministério da Agricultura e Pecuária | M22: 22101 | N22: Ministério da Agricultura e Pecuária
F23: 63101 | H23: - | I23: - | K23: Advocacia Geral da União | L23: Advocacia Geral da União | M23: 63101 | N23: Advocacia Geral da União
F24: 52111 | H24: - | I24: - | K24: Ministério da Aeronáutica | L24: Comando da Aeronáutica | M24: 52111 | N24: Comando da Aeronáutica
F25: 25208 | H25: - | I25: - | K25: Superintendência de Seguros Privados - SUSEP | L25: Superintendência de Seguros Privados - SUSEP | M25: 25208 | N25: Superintendência de Seguros Privados - SUSEP
F26: 26101 | H26: - | I26: - | K26: Ministério da Educação e do Desporto | L26: Ministério da Educação - Administração Direta | M26: 26101 | N26: Ministério da Educação - Administração Direta
H27: - | I27: -
H28: - | I28: -
H29: - | I29: -
H30: - | I30: -
H31: - | I31: -
H32: - | I32: -
H33: - | I33: -
H34: - | I34: -
